bitfinex/quotes_SOLUSD_20250425
["timestamp","ask_amount","ask_price","bid_price","bid_amount"]
[1745573742295,26.03,154.11,154.06,10.77121481]
[1745573742296,0.03,154.11,154.06,10.77121481]
[1745573742470,10.77121481,154.1,154.05,10.77121481]
[1745573742797,10.77121481,154.1,154.06,2.34686709]
[1745573743003,0.1053419,154.1,154.07,10.77121481]
[1745573743200,0.1053419,154.1,154.08,10.77121481]
[1745573743400,0.1053419,154.1,154.07,10.77121481]
[1745573743701,0.1053419,154.1,154.08,2.34686709]
[1745573744277,0.1053419,154.1,154.07,6.49030739]
[1745573744704,10.87655671,154.1,154.06,6.49093147]
[1745573744878,10.77121481,154.09,154.06,6.49093147]
[1745573745079,10.77121481,154.09,154.07,2.34715712]
[1745573745607,10.77121481,154.08,154.07,2.34715712]
[1745573746293,10.77121481,154.08,154.04,81.2]
[1745573747004,10.77121481,154.08,154.03,6.49190904]
[1745573747190,10.77121481,154.09,154.05,10.77121481]
[1745573747380,10.87655671,154.1,154.05,10.77121481]
[1745573748091,10.77121481,154.09,154.05,17.26245656]
[1745573749896,0.1053419,154.1,154.05,6.49124175]
[1745573750097,10.77121481,154.08,154.05,6.49124175]
[1745573750802,10.77121481,154.09,154.05,17.26245656]
[1745573752903,10.77121481,154.09,154.04,17.26290858]
[1745573753481,10.77121481,154.09,154.05,2.34916533]
[1745573754083,10.77121481,154.09,154.05,8.84037588]
[1745573754483,10.77121481,154.09,154.05,6.49121055]
[1745573755907,10.77121481,154.09,154.05,17.26242536]
[1745573756606,10.77121481,154.09,154.05,6.49121055]
[1745573757406,6.90271742,154.09,154.04,6.90271742]
[1745573758003,6.90271742,154.09,154.05,2.35005619]
[1745573758004,6.90271742,154.06,154.05,2.35005619]
[1745573758583,1.6160419,154.09,154.05,2.35005619]
[1745573758782,6.90271742,154.06,154.02,120.59520576]
[1745573759507,6.90271742,154.07,154.02,120.59520576]
[1745573760005,6.90271742,154.07,154.03,6.90271742]
[1745573760207,6.90271742,154.07,154.04,2.35055647]
[1745573760509,7.00805932,154.09,154.04,9.25327389]
[1745573760678,6.90271742,154.08,154.04,2.35055647]
[1745573761188,6.90271742,154.08,154.05,2.35055647]
[1745573761388,7.00805932,154.09,154.05,2.35055647]
[1745573761589,7.00805932,154.09,154.05,8.84193205]
[1745573762096,7.00805932,154.09,154.05,6.49137558]
[1745573762509,6.90271742,154.08,154.04,6.49165212]
[1745573762709,0.1053419,154.09,154.04,6.49165212]
[1745573763011,6.90271742,154.08,154.04,6.49165212]
[1745573763619,6.90271742,154.08,154.05,2.35129737]
[1745573764109,6.90271742,154.08,154.06,2.35129737]
[1745573764813,7.00805932,154.09,154.06,2.35129737]
[1745573765000,7.00805932,154.09,154.05,6.49133182]
[1745573765713,7.00805932,154.09,154.04,13.39434063]
[1745573766690,7.00805932,154.09,154.05,6.90271742]
[1745573766891,7.00805932,154.09,154.05,9.25923071]
[1745573767115,7.00805932,154.09,154.05,2.35651329]
[1745573767507,7.00805932,154.09,154.06,2.35651329]
[1745573768316,7.00805932,154.09,154.06,8.84748999]
[1745573768516,7.00805932,154.09,154.07,2.35651329]
[1745573768888,6.90271742,154.08,154.07,2.35651329]
[1745573773424,7.00805932,154.09,154.07,2.35651329]
[1745573774618,7.00805932,154.09,154.08,2.35651329]
[1745573776328,7.00805932,154.09,154.04,6.49148128]
[1745573776831,7.00805932,154.09,154.05,2.35866246]
[1745573777011,0.1053419,154.09,154.08,6.90271742]
[1745573777327,0.1053419,154.09,154.07,6.90271742]
[1745573777823,6.90271742,154.08,154.03,13.39495919]
[1745573778016,6.90271742,154.07,154.03,13.39495919]
[1745573778397,6.90271742,154.06,154.02,94.59523451]
[1745573778621,6.90271742,154.06,154.03,2.35871094]
[1745573779421,6.90271742,154.06,154.04,2.35871094]
[1745573780205,6.90271742,154.05,154.04,2.35871094]
[1745573780408,0.1053419,154.09,154.04,2.35871094]
[1745573780621,6.90271742,154.06,154.04,2.35871094]
[1745573781021,0.1053419,154.09,154.04,2.35871094]
[1745573781326,6.90271742,154.06,154.05,2.35871094]
[1745573781706,6.90271742,154.07,154.05,2.35871094]
[1745573782126,6.90271742,154.07,154.06,2.35871094]
[1745573789021,6.90271742,154.07,154.06,2.35871094]
[1745573791413,6.90271742,154.07,154.01,6.49285156]
[1745573791615,6.90271742,154.05,154.01,6.49285156]
[1745573791813,6.90271742,154.05,154.0,14.9143771]
[1745573792031,6.90271742,154.04,154.0,14.9143771]
[1745573792340,6.90271742,154.04,154.01,2.3599382]
[1745573793312,6.90271742,154.05,154.01,8.85293341]
[1745573793514,6.90271742,154.05,154.02,2.3599382]
[1745573794538,6.90271742,154.05,154.03,2.3599382]
[1745573794714,6.90271742,154.06,154.03,2.3599382]
[1745573794909,6.90271742,154.06,154.03,8.85180606]
[1745573795338,6.90271742,154.06,154.04,2.3599382]
[1745573796313,6.90271742,154.06,154.05,2.35885493]
[1745573796949,6.90271742,154.06,154.05,2.35883527]
[1745573801258,6.90271742,154.07,154.05,2.35883527]
[1745573801934,6.90271742,154.07,154.06,2.35883527]
[1745573804241,0.1053419,154.09,154.06,2.35883527]
[1745573804552,6.90271742,154.07,154.06,2.35883527]
[1745573808538,6.90271742,154.07,154.0,89.62101742]
[1745573808718,6.90271742,154.05,154.0,8.42101742]
[1745573809421,6.90271742,154.05,154.01,2.35915213]
[1745573810227,6.90271742,154.05,154.0,8.42101742]
[1745573810228,6.90271742,154.05,154.02,2.35915213]
[1745573810612,6.90271742,154.05,154.03,2.35915213]
[1745573810812,0.14216157,154.08,154.03,2.35915213]
[1745573811017,6.90271742,154.05,154.03,2.35915213]
[1745573811628,6.90271742,154.05,154.04,2.35915213]
[1745573817536,6.90271742,154.05,153.99,26.0]
[1745573817737,6.90271742,154.03,153.99,26.0]
[1745573817938,6.90271742,154.03,153.98,20.91440528]
[1745573818556,6.90271742,154.03,153.99,2.35889659]
[1745573819653,6.90271742,154.03,154.0,2.35889659]
[1745573820538,6.90271742,154.02,154.01,2.35889659]
[1745573820750,6.90271742,154.03,154.01,2.35889659]
[1745573821351,6.90271742,154.03,154.02,2.35889659]
[1745573827863,6.90271742,154.06,154.02,2.35889659]
[1745573828051,6.90271742,154.07,154.02,9.26161401]
[1745573828559,26.1053419,154.09,154.03,2.35889659]
[1745573828741,6.90271742,154.06,154.03,2.35889659]
[1745573829361,6.90271742,154.06,154.04,2.35889659]
[1745573830164,6.90271742,154.06,154.05,2.35889659]
[1745573832467,6.90271742,154.07,154.05,2.35889659]
[1745573833553,6.90271742,154.07,154.02,6.90271742]
[1745573833768,6.90271742,154.06,154.02,6.90271742]
[1745573834470,6.90271742,154.06,154.03,2.35821931]
[1745573835655,6.90271742,154.06,154.04,2.35821931]
[1745573836369,6.90271742,154.06,154.05,2.35821931]
[1745573838878,6.90271742,154.06,154.05,2.35821931]
[1745573839951,6.90271742,154.07,154.05,2.35821931]
[1745573840551,6.90271742,154.07,154.03,6.90271742]
[1745573841266,6.90271742,154.07,154.02,13.39531656]
[1745573841472,6.90271742,154.05,154.03,2.35836077]
[1745573841773,6.90271742,154.04,154.03,2.35836077]
[1745573852681,27.75303125,154.08,154.03,2.35836077]
[1745573852983,6.90271742,154.04,154.03,2.35836077]
[1745573854185,6.90271742,154.05,154.03,2.35836077]
[1745573854385,6.90271742,154.05,154.04,2.35836077]
[1745573865894,6.90271742,154.06,154.04,2.35836077]
[1745573866594,6.90271742,154.06,154.05,2.35836077]
[1745573866884,13.0853419,154.09,154.05,2.35836077]
[1745573867065,19.98805932,154.09,154.05,2.35836077]
[1745573867267,7.00805932,154.09,154.06,2.35836077]
[1745573868387,7.00805932,154.09,154.07,2.35836077]
[1745573869376,6.90271742,154.08,154.04,13.39429242]
[1745573869576,6.90271742,154.08,154.02,1.64]
[1745573869577,6.90271742,154.08,154.03,13.39485566]
[1745573869871,6.90271742,154.07,154.03,13.39485566]
[1745573870091,6.90271742,154.07,154.04,2.35964796]
[1745573870594,6.90271742,154.07,154.05,2.35964796]
[1745573871690,6.90271742,154.07,154.06,2.35964796]
[1745573877607,7.04487899,154.07,154.06,2.35964796]
[1745573877785,7.04487899,154.07,154.01,81.2]
[1745573878106,7.04487899,154.07,153.98,27.89080494]
[1745573878107,6.90271742,154.02,153.98,27.89080494]
[1745573878309,6.90271742,154.0,153.98,27.5139]
[1745573878523,6.90271742,154.0,153.99,2.35931484]
[1745573878691,6.90271742,154.01,153.99,2.35931484]
[1745573878994,6.90271742,154.0,153.99,2.35931484]
[1745573884912,0.14216157,154.03,153.99,2.35931484]
[1745573885123,6.90271742,154.0,153.99,2.35931484]
[1745573886616,6.90271742,154.01,153.99,2.35931484]
[1745573887529,6.90271742,154.01,154.0,2.35931484]
[1745573888101,6.90271742,154.02,154.0,2.35931484]
[1745573888896,6.90271742,154.02,154.01,2.35931484]
[1745573893525,6.90271742,154.03,153.99,6.49389188]
[1745573894000,6.90271742,154.03,154.0,2.3539888]
[1745573894704,6.90271742,154.03,154.01,2.3539888]
[1745573895120,6.90271742,154.03,153.99,13.3966093]
[1745573895306,6.90271742,154.01,154.0,2.35390738]
[1745573903516,6.90271742,154.01,153.97,6.49468072]
[1745573903716,6.90271742,154.0,153.97,6.49468072]
[1745573904434,6.90271742,154.0,153.98,2.35315925]
[1745573904625,6.90271742,154.01,153.98,2.35315925]
[1745573905028,6.90271742,154.0,153.98,2.35315925]
[1745573905530,6.90271742,154.0,153.99,2.35315925]
[1745573909149,6.90271742,154.01,153.99,2.35315925]
[1745573909836,6.90271742,154.01,153.97,13.3973647]
[1745573910538,6.90271742,154.01,153.98,2.35286107]
[1745573911453,6.90271742,154.01,153.99,2.35286107]
[1745573911821,6.90271742,154.0,153.99,2.35286107]
[1745573912734,6.90271742,154.0,153.97,2.35286107]
[1745573913048,6.90271742,153.98,153.97,2.35286107]
[1745573914349,6.90271742,153.98,153.96,0.110088]
[1745573914528,6.90271742,153.97,153.96,0.110088]
[1745573914935,6.90271742,153.97,153.96,2.4640146]
[1745573915547,7.04487899,153.97,153.96,2.4640146]
[1745573916629,7.04487899,153.97,153.96,0.110088]
[1745573922534,6.90271742,153.98,153.96,0.110088]
[1745573922738,6.90271742,153.98,153.96,2.46539822]
[1745573922932,6.90271742,153.99,153.96,2.46539822]
[1745573923737,6.90271742,153.99,153.97,2.35531022]
[1745573924860,6.90271742,153.99,153.96,0.110088]
[1745573925039,6.90271742,153.98,153.96,0.110088]
[1745573926959,6.90271742,153.98,153.97,2.35503942]
[1745573927557,13.12216157,154.01,153.97,2.35503942]
[1745573927762,6.90271742,153.98,153.96,0.110088]
[1745573930041,6.90271742,153.97,153.96,0.110088]
[1745573930242,6.90271742,153.97,153.96,2.46460813]
[1745573933861,25.69452785,153.97,153.96,2.46460813]
[1745573934167,25.69452785,153.97,153.96,0.110088]
[1745573936468,33.04487899,153.97,153.96,0.110088]
[1745573938063,51.69452785,153.97,153.96,0.110088]
[1745573938266,18.79181043,153.96,153.94,0.063]
[1745573938471,38.53236628,153.95,153.94,0.063]
[1745573938651,0.14216157,153.94,153.86,6.90271742]
[1745573938851,6.90271742,153.91,153.86,6.90271742]
[1745573939464,6.90271742,153.91,153.87,2.35268147]
[1745573939869,6.90271742,153.91,153.87,9.25539889]
[1745573940175,6.90271742,153.91,153.88,2.35268147]
[1745573941057,12.98,153.95,153.89,6.90271742]
[1745573941371,6.90271742,153.93,153.9,2.35268147]
[1745573941674,6.90271742,153.94,153.9,2.35268147]
[1745573943451,6.90271742,153.94,153.9,9.25539889]
[1745573944052,6.90271742,153.94,153.91,2.35268147]
[1745573944272,38.98,153.99,153.92,6.90271742]
[1745573944570,6.90271742,153.97,153.93,6.90271742]
[1745573945152,6.90271742,153.96,153.92,6.90271742]
[1745573945880,6.90271742,153.96,153.93,2.35148848]
[1745573946381,38.98,153.99,153.93,2.35148848]
[1745573946869,6.90271742,153.96,153.92,6.90271742]
[1745573948876,6.90271742,153.96,153.93,2.35212052]
[1745573949576,6.90271742,153.96,153.92,6.90271742]
[1745573951477,6.90271742,153.96,153.93,2.35302805]
[1745573951877,6.90271742,153.95,153.93,2.35302805]
[1745573952059,6.90271742,153.94,153.9,13.40741742]
[1745573952566,6.90271742,153.95,153.9,13.40741742]
[1745573953178,6.90271742,153.95,153.91,2.35351881]
[1745573953968,6.90271742,153.95,153.92,2.35351881]
[1745573954769,6.90271742,153.95,153.93,2.35351881]
[1745573955369,6.90271742,153.95,153.91,2.35351881]
[1745573955565,6.90271742,153.92,153.91,2.35351881]
[1745573955883,34.65574867,153.92,153.91,2.35351881]
[1745573956202,79.30539753,153.92,153.91,2.35351881]
[1745573956695,0.14216157,153.9,153.86,2.35351881]
[1745573956861,6.90271742,153.87,153.86,2.35351881]
[1745573958488,6.90271742,153.87,153.85,0.063]
[1745573958693,6.90271742,153.86,153.85,0.063]
[1745573959268,7.04487899,153.86,153.85,0.063]
[1745573961004,25.69452785,153.86,153.85,0.063]
[1745573962285,53.30539753,153.86,153.85,0.063]
[1745573963207,1.64336157,153.84,153.83,0.063]
[1745573963505,0.14216157,153.82,153.8,0.063]
[1745573963705,7.04487899,153.81,153.8,0.063]
[1745573966914,0.14216157,153.82,153.8,0.063]
[1745573967205,6.90271742,153.81,153.8,0.063]
[1745573970808,6.90271742,153.82,153.8,0.063]
[1745573971185,6.90271742,153.83,153.8,0.063]
[1745573971897,6.90271742,153.83,153.8,6.56495058]
[1745573974308,6.90271742,153.83,153.8,0.063]
[1745573976008,6.90271742,153.82,153.8,0.063]
[1745573986399,6.90271742,153.81,153.8,0.063]
[1745573994208,7.04487899,153.81,153.8,0.063]
[1745574000335,25.69452785,153.81,153.8,0.063]
[1745574001640,0.14216157,153.8,153.78,0.063]
[1745574001834,38.53236628,153.79,153.78,0.063]
[1745574007549,25.55236628,153.79,153.78,0.063]
[1745574007854,38.53236628,153.79,153.78,0.063]
[1745574013643,20.02487899,153.79,153.78,0.063]
[1745574020256,38.67452785,153.79,153.78,0.063]
[1745574020435,0.14216157,153.78,153.73,0.063]
[1745574020746,6.90271742,153.74,153.73,0.063]
[1745574020947,7.04487899,153.74,153.73,0.063]
[1745574022536,20.02487899,153.74,153.73,0.063]
[1745574030642,6.90271742,153.74,153.73,0.063]
[1745574034574,7.04487899,153.74,153.73,0.063]
[1745574045671,25.69452785,153.74,153.73,0.063]
[1745574046258,26.0,153.72,153.71,0.063]
[1745574046580,33.04487899,153.72,153.71,0.063]
[1745574047042,51.69452785,153.72,153.71,0.063]
[1745574048064,64.67452785,153.72,153.71,0.063]
[1745574049069,26.0,153.72,153.71,0.063]
[1745574049248,45.88271742,153.72,153.71,0.063]
[1745574049448,46.02487899,153.72,153.71,0.063]
[1745574060584,64.67452785,153.72,153.71,0.063]
[1745574061161,0.14216157,153.71,153.7,0.063]
[1745574061361,25.69452785,153.71,153.7,0.063]
[1745574067081,6.90271742,153.71,153.7,0.063]
[1745574073087,7.04487899,153.71,153.7,0.063]
[1745574075994,6.90271742,153.71,153.7,0.063]
[1745574079692,25.69452785,153.71,153.7,0.063]
[1745574079991,44.79181043,153.7,153.69,0.063]
[1745574080205,79.30539753,153.7,153.69,0.063]
[1745574081813,51.69452785,153.7,153.69,0.063]
[1745574083786,79.30539753,153.7,153.69,0.063]
[1745574084296,44.79181043,153.7,153.69,0.063]
[1745574084493,51.69452785,153.7,153.69,0.063]
[1745574084806,51.55236628,153.7,153.69,0.063]
[1745574085695,51.69452785,153.7,153.69,0.063]
[1745574087899,64.67452785,153.7,153.69,0.063]
[1745574089795,46.02487899,153.7,153.69,0.063]
[1745574092017,19.88271742,153.7,153.69,0.063]
[1745574092200,12.98,153.7,153.69,0.063]
[1745574092895,6.90271742,153.71,153.69,0.063]
[1745574093112,6.90271742,153.72,153.69,0.063]
[1745574098702,17.32231334,153.73,153.69,6.96571742]
[1745574099627,10.41959592,153.73,153.7,6.90271742]
[1745574099805,10.41959592,153.73,153.71,6.90271742]
[1745574101328,10.41959592,153.73,153.72,6.90271742]
[1745574101629,6.90271742,153.76,153.72,6.90271742]
[1745574103008,6.90271742,153.76,153.71,6.90271742]
[1745574103217,6.90271742,153.75,153.71,6.90271742]
[1745574104017,5.35782272,153.75,153.71,6.90271742]
[1745574105030,6.90271742,153.74,153.7,6.90271742]
[1745574105334,6.90271742,153.73,153.69,6.96571742]
[1745574105516,39.01,153.78,153.69,0.063]
[1745574105517,6.90271742,153.72,153.69,0.063]
[1745574108620,6.90271742,153.73,153.69,0.063]
[1745574113317,6.90271742,153.73,153.69,6.96571742]
[1745574115240,6.90271742,153.74,153.69,6.96571742]
[1745574116338,6.90271742,153.74,153.69,13.472321]
[1745574116539,6.90271742,153.74,153.7,2.35701546]
[1745574117042,6.90271742,153.74,153.69,6.96571742]
[1745574119039,6.90271742,153.74,153.7,2.35655579]
[1745574119746,6.90271742,153.74,153.69,6.96571742]
[1745574120544,6.90271742,153.71,153.69,0.063]
[1745574120869,6.90271742,153.7,153.69,0.063]
[1745574121155,7.04487899,153.7,153.69,0.063]
[1745574121328,66.26539753,153.7,153.69,0.063]
[1745574121529,7.04487899,153.67,153.66,0.063]
[1745574122422,25.69452785,153.67,153.66,0.063]
[1745574124244,29.00916916,153.67,153.66,0.063]
[1745574126436,25.55236628,153.65,153.64,0.063]
[1745574126627,38.53236628,153.65,153.64,0.063]
[1745574127356,64.53236628,153.65,153.64,0.063]
[1745574127826,64.67452785,153.65,153.64,0.063]
[1745574129050,0.14216157,153.64,153.63,0.063]
[1745574129352,7.04487899,153.64,153.63,0.063]
[1745574130152,25.69452785,153.64,153.62,0.063]
[1745574130444,7.04487899,153.63,153.62,0.063]
[1745574135350,25.69452785,153.63,153.62,0.063]
[1745574135941,7.04487899,153.63,153.62,0.063]
[1745574139435,6.90271742,153.63,153.62,0.063]
[1745574140532,12.96,153.64,153.62,0.063]
[1745574140750,6.90271742,153.63,153.62,0.063]
[1745574147440,12.96,153.64,153.62,0.063]
[1745574147639,6.90271742,153.63,153.62,0.063]
[1745574150543,12.96,153.64,153.62,0.063]
[1745574150856,19.36271742,153.64,153.62,0.063]
[1745574151551,12.46,153.64,153.62,0.063]
[1745574151750,19.36271742,153.64,153.62,0.063]
[1745574152347,6.90271742,153.64,153.62,0.063]
[1745574154568,6.90271742,153.63,153.62,0.063]
[1745574155252,6.90271742,153.65,153.62,0.063]
[1745574155455,6.90271742,153.64,153.62,0.063]
[1745574163476,6.90271742,153.65,153.62,0.063]
[1745574165163,6.90271742,153.65,153.63,2.36339789]
[1745574165987,6.90271742,153.65,153.62,6.57255487]
[1745574167160,6.90271742,153.65,153.62,0.063]
[1745574167659,6.90271742,153.65,153.63,2.36348923]
[1745574168372,6.90271742,153.65,153.62,0.063]
[1745574169783,6.90271742,153.65,153.63,2.36357455]
[1745574170663,6.90271742,153.65,153.62,6.57247559]
[1745574172170,6.90271742,153.65,153.63,2.36354166]
[1745574173087,6.90271742,153.65,153.62,6.57247559]
[1745574174282,6.90271742,153.65,153.62,0.063]
[1745574174668,6.90271742,153.65,153.63,2.36383449]
[1745574175387,6.90271742,153.65,153.62,0.063]
[1745574176886,6.90271742,153.63,153.62,0.063]
[1745574177275,6.90271742,153.65,153.62,2.42746757]
[1745574178192,6.90271742,153.65,153.63,2.36446757]
[1745574179264,6.90271742,153.65,153.62,0.063]
[1745574179476,6.90271742,153.66,153.62,6.57256704]
[1745574180502,6.90271742,153.66,153.62,0.063]
[1745574181001,6.90271742,153.66,153.63,2.36618747]
[1745574181890,6.90271742,153.66,153.64,2.36618747]
[1745574182393,6.90271742,153.66,153.62,0.063]
[1745574183197,6.90271742,153.66,153.63,2.36696211]
[1745574185903,6.90271742,153.66,153.64,2.36759077]
[1745574186510,6.90271742,153.66,153.62,0.063]
[1745574187196,19.86271742,153.68,153.62,6.96571742]
[1745574187401,12.96,153.68,153.64,6.90271742]
[1745574187581,6.90271742,153.69,153.65,6.90271742]
[1745574187772,6.93271742,153.7,153.66,6.90271742]
[1745574188383,0.03,153.7,153.68,6.90271742]
[1745574188686,0.03,153.7,153.68,13.40961615]
[1745574189202,0.03,153.7,153.67,15.77715233]
[1745574189504,0.03,153.7,153.69,2.36716704]
[1745574190282,0.03,153.7,153.66,13.41042768]
[1745574191477,0.03,153.7,153.67,2.3608784]
[1745574191875,6.93271742,153.7,153.67,2.3608784]
[1745574192190,6.93271742,153.7,153.68,2.3608784]
[1745574192784,0.03,153.7,153.68,2.3608784]
[1745574193011,0.03,153.7,153.67,6.90271742]
[1745574194295,0.03,153.7,153.67,13.41011777]
[1745574194499,0.03,153.7,153.68,6.90271742]
[1745574195311,0.03,153.7,153.67,6.50740035]
[1745574195312,0.03,153.7,153.67,13.41011777]
[1745574195818,0.03,153.7,153.68,2.35865365]
[1745574196520,0.03,153.7,153.67,13.41011777]
[1745574197006,0.03,153.7,153.68,6.90271742]
[1745574198011,0.03,153.7,153.69,6.90271742]
[1745574199061,0.03,153.7,153.69,97.14184996]
[1745574199388,0.03,153.7,153.69,99.49846833]
[1745574199914,0.03,153.7,153.69,106.00507253]
[1745574200220,0.03,153.7,153.69,98.48733999]
[1745574200397,0.03,153.7,153.69,99.78821617]
[1745574204426,0.03,153.7,153.69,18.58821617]
[1745574208430,0.03,153.7,153.69,44.75559757]
[1745574210303,0.03,153.7,153.69,125.95559757]
[1745574213633,0.03,153.7,153.69,107.30594871]
[1745574213826,0.03,153.7,153.69,98.26681617]
[1745574216136,0.03,153.7,153.69,17.06681617]
[1745574217936,0.03,153.7,153.69,24.58454871]
[1745574221138,0.03,153.71,153.7,18.64964886]
[1745574221322,0.03,153.77,153.72,32.90271742]
[1745574221646,0.03,153.77,153.76,6.90271742]
[1745574224130,0.03,153.77,153.76,13.40635945]
[1745574224653,0.03,153.77,153.76,13.27663769]
[1745574236440,0.03,153.77,153.76,15.63063154]
[1745574236950,0.03,153.77,153.76,2.35399385]
[1745574237138,6.93271742,153.77,153.74,6.50435058]
[1745574237335,6.90271742,153.75,153.7,7.51773254]
[1745574237539,6.90271742,153.75,153.71,6.90271742]
[1745574238056,6.90271742,153.75,153.72,2.35498168]
[1745574238551,6.90271742,153.76,153.73,6.5049112]
[1745574239232,6.90271742,153.76,153.74,2.35498168]
[1745574239931,6.93271742,153.77,153.74,2.35498168]
[1745574240753,6.93271742,153.77,153.74,8.85931983]
[1745574241062,0.03,153.77,153.74,15.76203725]
[1745574241458,0.03,153.77,153.75,2.35498168]
[1745574241958,0.03,153.77,153.76,2.35498168]
[1745574243871,6.93271742,153.77,153.76,2.35498168]
[1745574250345,0.03,153.77,153.76,2.35498168]
[1745574250560,6.93271742,153.77,153.76,2.35498168]
[1745574254269,6.93271742,153.77,153.72,6.50520753]
[1745574254448,6.90271742,153.76,153.72,6.50520753]
[1745574254866,6.90271742,153.76,153.73,2.36171922]
[1745574255574,6.90271742,153.76,153.74,2.36171922]
[1745574256545,6.90271742,153.76,153.75,2.36171922]
[1745574257571,0.14216157,153.74,153.69,0.063]
[1745574257772,6.90271742,153.7,153.69,0.063]
[1745574260473,6.90271742,153.71,153.69,0.063]
[1745574260783,0.14216157,153.74,153.69,0.063]
[1745574260948,6.90271742,153.71,153.69,0.063]
[1745574261657,6.90271742,153.7,153.69,0.063]
[1745574267789,6.90271742,153.71,153.69,0.063]
[1745574269290,6.90271742,153.7,153.69,0.063]
[1745574270869,6.90271742,153.71,153.69,0.063]
[1745574273085,7.04487899,153.7,153.69,0.063]
[1745574273463,25.69452785,153.7,153.69,0.063]
[1745574279397,6.90271742,153.7,153.69,0.063]
[1745574279564,6.90271742,153.71,153.69,0.063]
[1745574285596,6.90271742,153.7,153.69,0.063]
[1745574286992,6.90271742,153.71,153.69,0.063]
[1745574291483,2.5129,153.8,153.7,6.90271742]
[1745574291686,19.85271742,153.78,153.73,6.90271742]
[1745574292087,6.93271742,153.77,153.73,6.90271742]
[1745574294398,6.93271742,153.77,153.73,13.40746713]
[1745574295992,0.03,153.77,153.74,6.90271742]
[1745574297675,0.03,153.77,153.75,6.90271742]
[1745574299998,0.03,153.77,153.75,13.40647703]
[1745574300373,0.03,153.77,153.76,8.20325655]
[1745574300575,0.03,153.77,153.76,1.30053913]
[1745574300780,0.03,153.77,153.75,6.50375961]
[1745574302508,0.03,153.77,153.74,6.50438469]
[1745574302881,6.93271742,153.77,153.73,13.40749094]
[1745574303092,6.93271742,153.77,153.73,6.50477352]
[1745574303408,6.93271742,153.77,153.72,13.40785889]
[1745574304810,6.93271742,153.77,153.73,6.90271742]
[1745574305711,0.03,153.77,153.73,6.90271742]
[1745574306815,0.03,153.77,153.72,6.50514147]
[1745574306989,0.03,153.77,153.73,6.90271742]
[1745574307190,0.03,153.77,153.74,6.90271742]
[1745574308512,0.03,153.77,153.74,13.40704215]
[1745574308806,0.03,153.77,153.76,6.90271742]
[1745574310012,0.03,153.77,153.76,13.40635945]
[1745574313894,0.03,153.77,153.76,6.50364203]
[1745574314100,0.03,153.77,153.74,6.90271742]
[1745574314290,6.93271742,153.77,153.74,6.50429132]
[1745574315519,6.93271742,153.77,153.73,94.60743547]
[1745574316018,6.93271742,153.77,153.73,13.40743547]
[1745574317317,0.03,153.77,153.75,6.90271742]
[1745574317515,0.03,153.77,153.76,6.90271742]
[1745574317718,0.03,153.77,153.75,6.90271742]
[1745574318312,0.03,153.77,153.75,13.40645747]
[1745574319319,0.03,153.77,153.76,8.20323595]
[1745574321720,0.03,153.77,153.76,14.70687798]
[1745574336736,0.03,153.77,153.76,42.31774766]
[1745574337435,0.03,153.77,153.76,14.70687798]
[1745574337638,0.03,153.77,153.76,42.31774766]
[1745574338628,1e-08,153.78,153.77,18.64964886]
[1745574338839,1e-08,153.78,153.77,44.65596723]
[1745574339030,0.03,153.81,153.77,55.97352721]
[1745574339230,0.03,153.81,153.8,6.90271742]
[1745574339929,0.03,153.81,153.8,8.20255089]
[1745574340145,0.03,153.81,153.8,26.85219975]
[1745574340846,0.03,153.81,153.8,33.35415033]
[1745574341418,0.03,153.81,153.8,14.70450147]
[1745574345345,0.03,153.81,153.8,95.90450147]
[1745574346717,0.03,153.81,153.78,8.81767963]
[1745574346923,6.90271742,153.79,153.75,81.2]
[1745574347119,6.90271742,153.77,153.7,87.3119]
[1745574347322,6.90271742,153.75,153.71,6.90271742]
[1745574347538,6.90271742,153.74,153.7,13.40887955]
[1745574347722,6.90271742,153.75,153.7,13.40887955]
[1745574347918,6.90271742,153.76,153.71,6.90271742]
[1745574349846,6.90271742,153.75,153.71,13.40846844]
[1745574350443,6.90271742,153.76,153.71,13.40846844]
[1745574352037,6.90271742,153.75,153.71,13.40846844]
[1745574352550,6.90271742,153.75,153.71,6.50575102]
[1745574352752,6.1895,153.78,153.71,13.40846844]
[1745574352950,6.90271742,153.75,153.71,13.40846844]
[1745574355758,6.90271742,153.76,153.71,13.40846844]
[1745574356137,6.90271742,153.75,153.71,13.40846844]
[1745574357332,6.90271742,153.74,153.71,6.50575102]
[1745574357647,6.90271742,153.75,153.71,6.50575102]